bitfinex/quotes_SOLUSD_20250416
["timestamp","ask_amount","ask_price","bid_price","bid_amount"]
[1744820330145,29.63190982,128.38,128.36,11.92]
[1744820331460,21.84193721,128.4,128.36,11.92]
[1744820331976,29.63041367,128.4,128.36,11.92]
[1744820332180,29.62981121,128.41,128.36,41.552427]
[1744820332854,21.84193721,128.4,128.36,11.92]
[1744820333154,21.84193721,128.39,128.36,11.92]
[1744820333556,21.84193721,128.4,128.36,19.71055523]
[1744820333971,21.84193721,128.4,128.36,11.92]
[1744820334396,7.78876859,128.39,128.36,11.92]
[1744820334696,29.63042301,128.4,128.36,11.92]
[1744820335477,29.63042301,128.4,128.36,33.76193721]
[1744820335868,29.63042301,128.4,128.36,41.55245686]
[1744820336352,29.63042301,128.4,128.36,33.76193721]
[1744820336566,29.63042301,128.4,128.36,11.92]
[1744820337293,21.84193721,128.38,128.36,11.92]
[1744820337490,21.84193721,128.37,128.36,11.92]
[1744820337988,49.36633721,128.37,128.36,11.92]
[1744820338286,49.36633721,128.37,128.32,11.93]
[1744820338484,29.63398826,128.34,128.32,11.93]
[1744820339089,21.84193721,128.33,128.32,0.03]
[1744820340687,29.6343474,128.33,128.32,0.03]
[1744820341074,21.84193721,128.33,128.32,0.03]
[1744820341275,29.6343474,128.33,128.32,0.03]
[1744820341974,7.79241019,128.33,128.32,0.03]
[1744820342185,29.6343474,128.33,128.32,0.03]
[1744820343092,26.0,128.35,128.32,0.03]
[1744820343299,21.84193721,128.35,128.32,0.03]
[1744820343587,21.84193721,128.33,128.32,0.03]
[1744820343800,21.84193721,128.34,128.32,0.03]
[1744820344985,29.63352286,128.35,128.32,0.03]
[1744820345181,29.63291092,128.36,128.32,21.87193721]
[1744820345488,7.79097371,128.36,128.32,21.87193721]
[1744820346185,29.63291092,128.36,128.32,21.87193721]
[1744820346793,21.84193721,128.34,128.32,0.03]
[1744820346999,27.26744613,128.36,128.32,0.03]
[1744820347175,21.84193721,128.33,128.32,0.03]
[1744820349496,29.6343474,128.33,128.32,0.03]
[1744820351173,21.84193721,128.33,128.32,0.03]
[1744820351373,29.6343474,128.33,128.32,0.03]
[1744820355898,48.28399626,128.33,128.31,0.03]
[1744820356112,21.84193721,128.32,128.31,0.03]
[1744820357006,29.63495466,128.32,128.31,0.03]
[1744820358402,55.63495466,128.32,128.31,0.03]
[1744820358787,29.63495466,128.32,128.31,0.03]
[1744820358988,48.28460352,128.32,128.3,0.03]
[1744820359188,66.49158607,128.31,128.3,0.03]
[1744820361111,74.28521088,128.31,128.3,0.03]
[1744820361288,55.63556202,128.31,128.3,0.03]
[1744820363318,7.79329578,128.32,128.3,0.03]
[1744820364004,29.63523299,128.32,128.3,0.03]
[1744820364397,21.84193721,128.31,128.3,0.03]
[1744820365192,47.84193721,128.31,128.3,0.03]
[1744820366398,55.63556202,128.31,128.3,0.03]
[1744820367417,33.79362481,128.31,128.3,0.03]
[1744820367606,55.63556202,128.31,128.3,0.03]
[1744820368014,26.0,128.31,128.3,0.03]
[1744820368620,55.63556202,128.31,128.3,0.03]
[1744820369729,74.28521088,128.31,128.3,0.03]
[1744820370627,48.28521088,128.31,128.3,0.03]
[1744820371931,29.63556202,128.31,128.3,0.03]
[1744820372237,47.84193721,128.29,128.28,0.03]
[1744820373030,18.64964886,128.28,128.26,0.03]
[1744820373212,66.49158607,128.27,128.26,0.03]
[1744820373627,47.84193721,128.27,128.26,0.03]
[1744820374025,55.6379924,128.27,128.26,0.03]
[1744820378629,59.19837293,128.31,128.26,0.03]
[1744820378630,26.0,128.29,128.26,0.03]
[1744820378810,1.5806,128.31,128.27,21.84193721]
[1744820378811,21.84193721,128.31,128.27,21.84193721]
[1744820379211,21.84193721,128.31,128.26,21.87193721]
[1744820379823,21.84193721,128.3,128.26,21.87193721]
[1744820380315,21.84193721,128.3,128.26,0.03]
[1744820380515,21.84193721,128.3,128.26,21.87193721]
[1744820380933,21.84193721,128.28,128.26,0.03]
[1744820381132,21.84193721,128.3,128.26,0.03]
[1744820382019,29.6367057,128.3,128.26,0.03]
[1744820384319,33.79389739,128.31,128.27,21.84193721]
[1744820384619,55.6358346,128.31,128.26,23.53673721]
[1744820384937,21.84193721,128.3,128.26,1.6948]
[1744820385237,21.84193721,128.29,128.26,13.5748]
[1744820385630,21.84193721,128.29,128.26,1.6948]
[1744820386030,21.84193721,128.3,128.26,1.6948]
[1744820386721,55.63585236,128.31,128.27,21.84193721]
[1744820387326,33.79391515,128.31,128.27,21.84193721]
[1744820387932,55.63585236,128.31,128.27,21.84193721]
[1744820388132,21.84193721,128.3,128.26,1.6948]
[1744820388845,29.63647194,128.3,128.26,1.6948]
[1744820389640,29.63647194,128.3,128.26,9.49130426]
[1744820389820,39.71391045,128.35,128.28,21.84193721]
[1744820390023,26.0,128.32,128.28,21.84193721]
[1744820390328,53.27131057,128.34,128.29,21.84193721]
[1744820390519,21.84193721,128.33,128.29,21.84193721]
[1744820390717,33.79180302,128.34,128.3,21.84193721]
[1744820390934,55.63298081,128.36,128.31,21.84193721]
[1744820391128,55.63298081,128.36,128.3,19.67417305]
[1744820391129,29.63298081,128.36,128.32,21.84193721]
[1744820391325,21.84193721,128.33,128.3,11.88]
[1744820391945,26.0,128.35,128.3,41.51597484]
[1744820392144,21.84193721,128.34,128.3,41.51597484]
[1744820393352,7.79180302,128.34,128.3,41.51597484]
[1744820393945,7.79180302,128.34,128.3,33.72193721]
[1744820394423,7.79180302,128.34,128.3,41.51614317]
[1744820394619,47.90493721,128.37,128.32,21.84193721]
[1744820395318,21.84193721,128.35,128.31,7.737]
[1744820395525,21.84193721,128.34,128.31,1.6104]
[1744820395742,27.26730614,128.36,128.3,11.88]
[1744820395935,7.79083372,128.36,128.33,21.84193721]
[1744820396139,7.79083372,128.36,128.32,21.84193721]
[1744820397234,33.85330225,128.37,128.33,21.84193721]
[1744820398843,0.063,128.37,128.36,21.84193721]
[1744820400044,0.063,128.37,128.36,29.63252617]
[1744820400359,0.063,128.37,128.36,21.84193721]
[1744820400547,0.063,128.37,128.35,11.88]
[1744820400735,21.90493721,128.37,128.35,11.88]
[1744820400940,21.84193721,128.36,128.35,11.88]
[1744820401335,69.68387442,128.36,128.29,6.1737]
[1744820401534,21.84193721,128.31,128.27,102.00004628]
[1744820402835,21.84193721,128.33,128.28,21.84193721]
[1744820403431,0.063,128.37,128.32,21.84193721]
[1744820403748,0.063,128.37,128.33,33.70193721]
[1744820404125,0.063,128.37,128.35,21.84193721]
[1744820404328,0.063,128.37,128.36,21.84193721]
[1744820404555,0.063,128.37,128.35,21.84193721]
[1744820405354,0.063,128.37,128.36,21.84193721]
[1744820405853,0.063,128.37,128.36,46.52658607]
[1744820406041,0.063,128.37,128.36,27.87693721]
[1744820406241,0.063,128.37,128.36,21.84193721]
[1744820407057,0.063,128.37,128.36,29.63252617]
[1744820407943,0.063,128.37,128.36,48.28217503]
[1744820408263,0.063,128.37,128.36,128.98217503]
[1744820408855,0.063,128.39,128.38,40.49158607]
[1744820409053,0.063,128.39,128.38,52.33158607]
[1744820409437,0.063,128.39,128.38,60.26118607]
[1744820409843,0.063,128.39,128.38,140.96118607]
[1744820410556,0.063,128.39,128.38,148.75056136]
[1744820411662,0.063,128.39,128.38,170.59249857]
[1744820411855,0.063,128.42,128.38,190.0659368]
[1744820412041,0.063,128.42,128.41,21.84193721]
[1744820412766,0.063,128.42,128.41,29.62949269]
[1744820413074,0.063,128.42,128.41,48.27914155]
[1744820413648,0.063,128.42,128.41,128.97914155]
[1744820414645,0.063,128.43,128.42,18.64964886]
[1744820414843,0.063,128.46,128.42,156.37550782]
[1744820415175,0.063,128.46,128.45,40.49158607]
[1744820415947,0.063,128.46,128.44,21.84193721]
[1744820416257,0.063,128.46,128.43,33.68193721]
[1744820417173,0.063,128.46,128.44,21.84193721]
[1744820417766,0.063,128.46,128.45,21.84193721]
[1744820418176,0.063,128.46,128.45,40.49158607]
[1744820418550,0.063,128.46,128.45,128.97671647]
[1744820421172,0.063,128.46,128.45,150.81865368]
[1744820421777,0.063,128.5,128.46,18.64964886]
[1744820421979,0.063,128.5,128.49,40.49158607]
[1744820422156,0.063,128.5,128.49,52.33158607]
[1744820422574,0.063,128.5,128.49,33.68193721]
[1744820422890,0.063,128.5,128.49,11.84]
[1744820423070,21.90493721,128.5,128.49,11.84]
[1744820423964,0.063,128.5,128.49,11.84]
[1744820424979,0.063,128.5,128.49,33.68193721]
[1744820425167,0.063,128.5,128.49,60.11429289]
[1744820425369,0.063,128.5,128.49,140.81429289]
[1744820430576,0.063,128.5,128.49,118.97235568]
[1744820430895,0.063,128.5,128.49,140.81429289]
[1744820433389,0.063,128.56,128.54,18.64964886]
[1744820433587,0.063,128.56,128.55,52.31158607]
[1744820435303,0.063,128.56,128.55,140.79066036]
[1744820440167,0.063,128.56,128.55,11.82]
[1744820440597,21.90493721,128.56,128.55,11.82]
[1744820442194,29.6834064,128.56,128.52,323.46]
[1744820442398,21.84193721,128.53,128.52,242.76]
[1744820442568,21.84193721,128.53,128.51,11.82]
[1744820442769,21.84193721,128.52,128.51,11.82]
[1744820444077,21.84193721,128.52,128.49,92.52]
[1744820444282,29.62403837,128.5,128.49,11.82]
[1744820445273,42.6912541,128.5,128.49,11.82]
[1744820445498,42.6912541,128.5,128.45,11.82]
[1744820445695,34.90915294,128.46,128.45,11.82]
[1744820446277,42.6936773,128.46,128.45,11.82]
[1744820447401,42.69324244,128.47,128.45,11.82]
[1744820447576,6.5445,128.48,128.45,11.82]
[1744820447898,41.45365294,128.48,128.45,11.82]
[1744820448405,49.23709251,128.48,128.45,11.82]
[1744820448610,34.90915294,128.47,128.45,11.82]
[1744820448808,34.90915294,128.46,128.45,11.82]
[1744820449009,60.90915294,128.47,128.45,11.82]
[1744820449706,26.0,128.47,128.45,11.82]
[1744820451103,33.78393119,128.47,128.45,11.82]
[1744820451304,6.5445,128.48,128.45,11.82]
[1744820451503,6.1686,128.51,128.45,54.51403705]
[1744820451805,41.07775294,128.51,128.46,34.90915294]
[1744820452013,60.90915294,128.52,128.47,34.90915294]
[1744820452210,34.90915294,128.52,128.48,34.90915294]
[1744820452383,44.27039626,128.53,128.49,34.90915294]
[1744820452583,44.27039626,128.53,128.5,11.82]
[1744820453192,34.90915294,128.52,128.5,11.82]
[1744820453589,44.27039626,128.53,128.5,11.82]
[1744820453792,34.90915294,128.52,128.5,11.82]
[1744820453987,34.90915294,128.51,128.5,11.82]
[1744820455011,42.69064854,128.51,128.5,11.82]
[1744820457318,7.7814956,128.51,128.5,11.82]
[1744820457814,42.69064854,128.51,128.5,11.82]
[1744820458012,88.14438754,128.51,128.45,92.52]
[1744820458190,34.90915294,128.47,128.45,92.52]
[1744820459221,42.69320958,128.47,128.45,92.52]
[1744820460614,34.90915294,128.47,128.45,92.52]
[1744820461205,42.69308953,128.47,128.45,92.52]
[1744820462522,34.90915294,128.46,128.45,92.52]
[1744820463621,6.6308,128.51,128.45,127.42915294]
[1744820463915,41.53995294,128.51,128.47,34.90915294]
[1744820464618,7.78210116,128.5,128.47,34.90915294]
[1744820464826,1.5806,128.53,128.49,34.90915294]
[1744820465194,1.5806,128.53,128.5,11.8]
[1744820465515,9.36117909,128.53,128.5,11.8]
[1744820467017,31.15724317,128.53,128.5,11.8]
[1744820467321,44.24086779,128.53,128.5,11.8]
[1744820468020,60.8796887,128.55,128.5,46.6796887]
[1744820468210,0.063,128.56,128.54,34.8796887]
[1744820468405,0.063,128.56,128.55,46.6796887]
[1744820468713,0.063,128.56,128.55,11.8]
[1744820469397,0.063,128.56,128.55,46.6796887]
[1744820469814,0.063,128.56,128.55,11.8]
[1744820473120,0.063,128.56,128.55,54.45876299]
[1744820473323,0.063,128.56,128.55,73.10841185]
[1744820474807,0.063,128.56,128.55,46.6796887]
[1744820475005,0.063,128.56,128.55,11.8]
[1744820475206,34.9426887,128.56,128.55,11.8]
[1744820476622,67.5712887,128.56,128.51,11.8]
[1744820476823,69.7593774,128.52,128.48,11.8]
[1744820477023,34.8796887,128.49,128.48,11.8]
[1744820478745,34.8796887,128.49,128.47,323.52]
[1744820478943,34.8796887,128.48,128.43,65.39233756]
[1744820479129,34.8796887,128.49,128.45,53.52933756]
[1744820479335,34.8796887,128.5,128.45,34.8796887]
[1744820479528,34.8796887,128.49,128.45,34.8796887]
[1744820479941,34.8796887,128.48,128.44,61.31459272]
[1744820480145,34.8796887,128.48,128.44,42.66494386]
[1744820481029,34.8796887,128.49,128.45,34.8796887]
[1744820481231,34.8796887,128.51,128.46,34.8796887]
[1744820481528,33.77991919,128.54,128.49,34.8796887]
[1744820481723,34.8796887,128.53,128.5,11.8]
[1744820482236,42.65960789,128.54,128.5,11.8]
[1744820482432,34.8796887,128.54,128.5,46.6796887]
[1744820482636,49.35005187,128.56,128.52,34.8796887]
[1744820482837,34.9426887,128.56,128.52,34.8796887]
[1744820483040,0.063,128.56,128.54,34.8796887]
[1744820483239,0.063,128.56,128.55,65.32933756]
[1744820484745,0.063,128.56,128.55,73.10841185]
[1744820485657,0.063,128.56,128.55,11.8]
[1744820485848,34.9426887,128.56,128.52,34.8796887]
[1744820486051,0.063,128.56,128.54,11.8]
[1744820486255,34.8796887,128.55,128.54,11.8]
[1744820486631,42.65876299,128.55,128.54,11.8]
[1744820487659,42.65876299,128.55,128.5,11.8]
[1744820487660,62.10644871,128.55,128.5,11.8]
[1744820487958,34.8796887,128.52,128.5,11.8]
[1744820488744,34.8796887,128.51,128.5,11.8]
[1744820490259,34.8796887,128.51,128.46,123.36395976]
[1744820490432,34.8796887,128.5,128.47,11.8]
[1744820490843,34.8796887,128.49,128.47,11.8]
[1744820491044,34.8796887,128.5,128.47,11.8]
[1744820492362,34.8796887,128.49,128.47,11.8]
[1744820492667,34.8796887,128.5,128.47,11.8]
[1744820492834,42.66205451,128.5,128.47,11.8]
[1744820493034,26.0,128.53,128.47,11.8]
[1744820493232,26.0,128.53,128.49,34.8796887]
[1744820493655,68.66022295,128.53,128.48,34.8796887]
[1744820493862,34.8796887,128.52,128.48,34.8796887]
[1744820494663,34.8796887,128.5,128.47,11.8]
[1744820494842,34.8796887,128.52,128.47,54.46339877]
[1744820495243,34.8796887,128.51,128.47,54.46339877]
[1744820495769,34.8796887,128.51,128.47,46.6796887]
[1744820495938,34.8796887,128.51,128.47,11.8]
[1744820496459,34.8796887,128.5,128.47,11.8]
[1744820496838,42.66180551,128.5,128.47,11.8]
[1744820497972,34.8796887,128.5,128.47,11.8]
[1744820498645,34.8796887,128.48,128.47,11.8]
[1744820498851,34.8796887,128.48,128.44,0.063]
[1744820499048,34.8796887,128.45,128.44,0.063]
[1744820499960,42.6648191,128.45,128.44,0.063]
[1744820501771,34.8796887,128.45,128.44,0.063]
[1744820501953,42.6648191,128.45,128.44,0.063]
[1744820503654,68.6648191,128.45,128.44,0.063]
[1744820503867,87.31446796,128.45,128.44,0.063]
[1744820504068,33.78694907,128.42,128.41,0.063]
[1744820504274,122.19597533,128.42,128.41,0.063]
[1744820504474,33.78694907,128.42,128.41,0.063]
[1744820504657,68.66663777,128.42,128.41,0.063]
[1744820505578,68.66663777,128.42,128.36,7.509343]
[1744820505769,34.8796887,128.4,128.36,7.509343]
[1744820506271,33.78694907,128.42,128.33,361.66961971]
[1744820506475,33.78694907,128.42,128.33,242.84]
[1744820506476,34.8796887,128.35,128.33,242.84]
[1744820506681,34.8796887,128.36,128.33,242.84]
[1744820506859,27.5661,128.4,128.34,46.7226887]
[1744820507059,27.5661,128.4,128.35,34.8796887]
[1744820507259,34.8796887,128.39,128.35,34.8796887]
[1744820507468,34.8796887,128.39,128.34,54.51445507]
[1744820507666,34.8796887,128.38,128.34,54.51445507]
[1744820507867,34.8796887,128.37,128.34,11.843]
[1744820508272,34.8796887,128.36,128.34,11.843]
[1744820509156,34.8796887,128.37,128.34,11.843]
[1744820509382,34.8796887,128.38,128.34,54.51449133]
[1744820509563,34.8796887,128.39,128.35,34.8796887]
[1744820509762,33.7884011,128.4,128.36,34.8796887]
[1744820509763,34.8796887,128.4,128.36,34.8796887]
[1744820509962,34.8796887,128.38,128.34,19.63480263]
[1744820510165,33.78719472,128.42,128.36,34.8796887]
[1744820510367,34.8796887,128.41,128.35,1.5074]
[1744820510575,34.8796887,128.4,128.36,34.8796887]
[1744820510760,34.8796887,128.39,128.35,36.3870887]
[1744820511081,27.25010526,128.44,128.38,34.8796887]
[1744820511082,7.78573653,128.44,128.38,34.8796887]
[1744820511263,42.66542523,128.44,128.4,34.8796887]
[1744820511579,7.7852905,128.45,128.42,34.8796887]
[1744820511770,34.8796887,128.46,128.39,11.78]
[1744820511971,34.8796887,128.45,128.39,11.78]
[1744820512169,34.8796887,128.45,128.4,34.8796887]
[1744820512366,42.6654134,128.45,128.4,34.8796887]
[1744820512571,34.8796887,128.44,128.4,34.8796887]
[1744820512768,34.8796887,128.43,128.39,11.78]
[1744820513060,34.8796887,128.4,128.39,11.78]
[1744820513456,95.7593774,128.4,128.35,11.78]
[1744820513762,34.8796887,128.37,128.35,11.78]
[1744820514273,34.8796887,128.38,128.35,11.78]
[1744820514583,42.6691288,128.38,128.35,11.78]
[1744820515289,34.8796887,128.36,128.35,11.78]
[1744820516177,7.78891601,128.39,128.35,46.6596887]
[1744820516383,42.66860471,128.39,128.35,11.78]
[1744820516783,34.8796887,128.38,128.35,11.78]
[1744820517187,42.66796993,128.4,128.35,54.45069651]
[1744820517369,34.8796887,128.39,128.35,54.45069651]
[1744820517575,34.8796887,128.39,128.35,46.6596887]
[1744820517765,68.66740215,128.41,128.37,34.8796887]
[1744820517960,34.8796887,128.46,128.39,34.8796887]
[1744820517961,54.3413483,128.46,128.39,34.8796887]
[1744820518162,7.84657399,128.48,128.44,34.8796887]
[1744820518393,7.84657399,128.48,128.45,46.6796887]
[1744820518567,0.063,128.48,128.45,46.6796887]
[1744820518766,0.063,128.48,128.46,34.8796887]
[1744820518970,0.063,128.48,128.47,34.8796887]
[1744820519470,0.063,128.48,128.46,34.8796887]
[1744820519971,34.9426887,128.48,128.45,11.8]
[1744820520187,0.063,128.48,128.45,11.8]
[1744820520391,0.063,128.48,128.47,34.8796887]
[1744820520686,0.063,128.48,128.47,42.66360712]
[1744820521191,0.063,128.48,128.45,11.8]
[1744820521780,0.063,128.48,128.45,64.7060111]
[1744820521980,0.063,128.48,128.47,52.9060111]
[1744820522372,0.063,128.48,128.46,18.64964886]
[1744820522696,0.063,128.48,128.47,52.9060111]
[1744820523191,0.063,128.48,128.45,72.49112854]
[1744820523392,0.063,128.48,128.45,11.8]
[1744820523790,52.9690111,128.48,128.45,11.8]
[1744820523974,0.063,128.48,128.45,11.8]
[1744820524175,52.9060111,128.46,128.45,11.8]
[1744820524369,0.063,128.48,128.45,11.8]
[1744820524591,52.9060111,128.47,128.45,11.8]
[1744820524774,7.78452436,128.46,128.45,11.8]
[1744820525305,60.69053546,128.46,128.45,11.8]
[1744820526272,7.78452436,128.46,128.45,11.8]
[1744820526477,60.69053546,128.46,128.45,11.8]
[1744820527612,60.69006394,128.47,128.45,11.8]
[1744820527775,7.84643498,128.48,128.45,11.8]
[1744820527979,0.063,128.48,128.47,52.9060111]
[1744820528603,0.063,128.48,128.46,52.9060111]
[1744820529199,0.063,128.48,128.47,52.9060111]
[1744820531186,0.063,128.48,128.46,52.9060111]
[1744820531590,0.063,128.48,128.47,52.9060111]
[1744820532506,0.063,128.48,128.47,60.68992952]
[1744820532682,0.063,128.48,128.47,79.33957838]
[1744820532878,0.063,128.48,128.47,186.03957838]
[1744820534278,0.063,128.55,128.48,18.64964886]
[1744820534479,0.063,128.55,128.52,52.9060111]
[1744820534788,0.063,128.55,128.53,11.76]
[1744820534988,52.9060111,128.54,128.53,11.76]
[1744820536006,60.68569057,128.54,128.53,11.76]
[1744820537907,80.13488926,128.54,128.49,11.76]
[1744820538091,52.9060111,128.5,128.49,11.76]
[1744820538605,27.22887816,128.54,128.49,11.76]
[1744820539214,52.9060111,128.51,128.49,11.76]
[1744820540014,7.78210116,128.5,128.49,11.76]
[1744820540205,52.9060111,128.51,128.49,11.76]
[1744820540516,60.68767368,128.51,128.49,11.76]
[1744820541086,52.9060111,128.5,128.49,11.76]
[1744820541733,52.9060111,128.5,128.45,11.76]
[1744820542009,52.9060111,128.46,128.45,11.76]
[1744820542183,60.69053546,128.46,128.45,11.76]
[1744820543207,42.70554462,128.46,128.45,11.76]
[1744820544726,77.62656488,128.46,128.45,11.76]
[1744820544906,103.62656488,128.46,128.39,34.92102026]
[1744820545105,103.62656488,128.46,128.41,11.76]
[1744820545106,26.0,128.43,128.41,11.76]
[1744820545305,34.92102026,128.42,128.41,11.76]
[1744820545831,26.0,128.43,128.41,11.76]
[1744820546004,34.92102026,128.42,128.41,11.76]
[1744820546208,42.70796933,128.42,128.41,11.76]
[1744820548229,42.70796933,128.42,128.37,11.76]
[1744820548429,34.92102026,128.4,128.37,19.5499734]
[1744820548632,34.92102026,128.4,128.37,11.76]
[1744820548825,53.24829428,128.45,128.38,34.92102026]
[1744820549016,34.92102026,128.42,128.38,34.92102026]
[1744820549330,34.92102026,128.42,128.37,46.68102026]
[1744820549530,34.92102026,128.43,128.38,34.92102026]
[1744820550227,42.70757886,128.43,128.38,34.92102026]
[1744820550732,34.92102026,128.42,128.38,34.92102026]
[1744820551124,42.70840459,128.42,128.37,19.5499499]
[1744820551433,34.92102026,128.41,128.37,19.5499499]
[1744820552538,34.92102026,128.41,128.37,54.47097016]
[1744820552840,34.92102026,128.43,128.39,34.92102026]
[1744820553342,26.0,128.45,128.37,19.5499499]
[1744820553343,34.92102026,128.42,128.37,54.47097016]
[1744820553515,34.92102026,128.42,128.38,34.92102026]
[1744820553717,34.92102026,128.41,128.37,11.76]
[1744820554021,34.92102026,128.41,128.37,19.5499609]
[1744820554205,42.7089495,128.41,128.37,11.76]
[1744820554409,34.92102026,128.4,128.37,11.76]
[1744820554610,34.92102026,128.39,128.37,11.76]
[1744820555614,34.92102026,128.38,128.37,11.76]
[1744820555841,34.92102026,128.39,128.37,11.76]
[1744820556349,7.78937529,128.38,128.37,11.76]
[1744820556718,7.78782313,128.41,128.37,46.68102026]
[1744820556916,68.70822662,128.42,128.37,46.68102026]
[1744820557135,34.92102026,128.41,128.37,46.68102026]
[1744820557322,34.92102026,128.41,128.37,11.76]
[1744820557921,42.70822662,128.42,128.37,46.68102026]
[1744820558220,6.6096,128.43,128.37,46.68102026]
[1744820558221,42.70493868,128.47,128.41,42.70818911]
[1744820558421,42.70493868,128.47,128.42,11.76]
[1744820558714,34.92102026,128.44,128.42,11.76]
[1744820559636,34.92102026,128.43,128.42,11.76]
[1744820560446,42.70736301,128.43,128.42,11.76]
[1744820561339,42.70736301,128.43,128.38,11.76]
[1744820561532,42.70736301,128.43,128.38,46.68102026]
[1744820561762,7.78634275,128.43,128.39,34.92102026]
[1744820562237,42.70736301,128.43,128.38,46.68102026]
[1744820562622,42.70736301,128.43,128.38,11.76]
[1744820562834,7.78634275,128.43,128.39,34.92102026]
[1744820563223,42.70736301,128.43,128.38,11.76]
[1744820563521,42.70736301,128.43,128.38,46.68102026]
[1744820563750,42.70736301,128.43,128.38,54.47029901]
[1744820564044,42.70736301,128.43,128.39,34.92102026]
[1744820564342,42.70736301,128.43,128.38,46.68102026]
[1744820565043,42.70736301,128.43,128.38,54.47030181]
[1744820565238,42.70736301,128.43,128.38,46.68102026]
[1744820565538,7.78596382,128.44,128.41,34.92102026]
[1744820565753,42.70554462,128.46,128.42,34.92102026]
[1744820565947,7.78394581,128.47,128.43,46.68102026]
[1744820566132,34.92102026,128.46,128.43,11.76]
[1744820566334,34.92102026,128.44,128.43,11.76]
[1744820567534,42.70675679,128.44,128.43,11.76]
[1744820568745,44.28015679,128.44,128.43,11.76]
[1744820568954,26.0,128.43,128.35,86.8391]
[1744820569255,34.92102026,128.41,128.38,11.76]
[1744820569625,42.70884104,128.41,128.38,11.76]
[1744820571048,34.92102026,128.4,128.38,11.76]
[1744820571626,34.92102026,128.39,128.34,242.883]
[1744820571830,7.78782078,128.41,128.34,242.883]
[1744820571831,34.92102026,128.36,128.35,11.76]
[1744820572050,34.92102026,128.37,128.35,11.76]
[1744820572349,34.92102026,128.36,128.35,11.76]
[1744820572750,26.0,128.4,128.35,11.76]
[1744820573047,42.7111968,128.37,128.35,11.76]
[1744820573345,34.92102026,128.36,128.35,11.76]
[1744820574031,34.92102026,128.36,128.34,0.063]
[1744820574353,34.92102026,128.35,128.34,0.063]
[1744820575131,42.7122162,128.35,128.34,0.063]
[1744820575760,42.7122162,128.35,128.3,0.03]
[1744820575761,46.22734886,128.31,128.3,0.03]
[1744820575945,81.14836912,128.31,128.26,0.03]
[1744820576140,34.92102026,128.27,128.26,0.03]
[1744820577352,42.71707545,128.27,128.26,0.03]
[1744820579052,42.71707545,128.27,128.25,0.03]
[1744820579253,34.92102026,128.26,128.25,0.03]
[1744820581438,44.64964886,128.24,128.23,1e-08]
[1744820581642,26.0,128.21,128.19,2.7499694]
[1744820581845,41.26942026,128.2,128.19,0.54692929]
[1744820582140,59.91906912,128.2,128.19,0.54692929]
[1744820582744,41.26942026,128.2,128.19,0.54692929]
[1744820582946,26.0,128.21,128.19,0.54692929]
[1744820583252,34.92102026,128.2,128.19,0.54692929]
[1744820583452,42.72133227,128.2,128.19,0.54692929]
[1744820586839,80.87176116,128.2,128.14,11.76]
[1744820587059,34.92102026,128.16,128.14,11.76]
[1744820587455,34.92102026,128.15,128.14,11.76]
[1744820587957,34.92102026,128.15,128.13,0.03]
[1744820588159,34.92102026,128.14,128.13,0.03]
[1744820588747,61.37463353,128.14,128.13,0.03]
[1744820589082,42.72498467,128.14,128.13,0.03]
[1744820589248,7.80213778,128.17,128.13,0.03]
[1744820589447,33.80213778,128.17,128.13,0.03]
[1744820589645,34.92102026,128.14,128.13,0.03]
[1744820590264,33.80213778,128.17,128.13,0.03]
[1744820590467,34.92102026,128.14,128.13,0.03]
[1744820590764,53.30748224,128.17,128.13,0.03]
[1744820590946,34.92102026,128.15,128.13,0.03]
[1744820591141,33.80213778,128.17,128.13,0.03]
[1744820591344,34.92102026,128.15,128.13,0.03]
[1744820591544,34.92102026,128.14,128.13,0.03]
[1744820591744,33.80213778,128.17,128.13,0.03]
[1744820591954,68.72315804,128.17,128.13,0.03]